bitfinex-derivatives/quotes_BNBF0:USTF0_20260110
["timestamp","ask_amount","ask_price","bid_price","bid_amount"]
[1768036393326,0.19256255,904.27,902.08,0.68628907]
[1768036393525,0.19256255,904.27,902.09,0.68628907]
[1768036393729,0.19256255,904.27,902.1,0.68628907]
[1768036393929,0.19256255,904.27,902.11,0.68628907]
[1768036394226,0.19256255,904.27,902.12,0.68628907]
[1768036394430,0.19256255,904.27,902.13,0.68628907]
[1768036394626,0.19256255,904.27,902.14,0.68628907]
[1768036394829,0.19256255,904.27,902.15,0.68628907]
[1768036395030,0.19256255,904.27,902.16,0.68628907]
[1768036395324,0.19256255,904.27,902.17,0.68628907]
[1768036395529,0.19256255,904.27,902.18,0.68628907]
[1768036395726,0.19256255,904.27,902.19,0.68628907]
[1768036396025,0.19256255,904.27,902.2,0.68628907]
[1768036396330,0.19256255,904.27,902.01,1.959]
[1768036396530,0.19256255,904.27,902.02,0.68383546]
[1768036396729,0.19256255,904.27,902.03,0.68383546]
[1768036396927,0.19256255,904.27,902.04,0.68383546]
[1768036397130,0.19256255,904.27,902.05,0.68383546]
[1768036397332,0.19256255,904.27,902.06,0.68383546]
[1768036397531,0.19256255,904.27,902.07,0.68383546]
[1768036397728,0.19256255,904.27,902.08,0.68383546]
[1768036398028,0.19256255,904.27,902.09,0.68383546]
[1768036398232,0.19256255,904.27,902.1,0.68383546]
[1768036398533,0.19256255,904.27,902.11,0.68383546]
[1768036398733,0.19256255,904.27,902.12,0.68383546]
[1768036398933,0.19256255,904.27,902.13,0.68383546]
[1768036399233,0.19256255,904.27,902.14,0.68383546]
[1768036399434,0.19256255,904.27,902.15,0.68383546]
[1768036399634,0.19256255,904.27,902.16,0.68383546]
[1768036399936,0.19256255,904.27,902.17,0.68383546]
[1768036400133,0.19256255,904.27,902.18,0.68383546]
[1768036400331,0.19256255,904.27,902.19,0.68383546]
[1768036400533,0.19256255,904.27,902.01,1.959]
[1768036400733,0.19256255,904.27,902.02,0.68318194]
[1768036401030,0.19256255,904.27,902.03,0.68318194]
[1768036401234,0.19256255,904.27,902.04,0.68318194]
[1768036401434,0.19256255,904.27,902.05,0.68318194]
[1768036401632,0.19256255,904.27,902.06,0.68318194]
[1768036401834,0.19256255,904.27,902.07,0.68318194]
[1768036402032,0.19256255,904.27,902.08,0.68318194]
[1768036402230,0.19256255,904.27,902.09,0.68318194]
[1768036402433,0.19256255,904.27,902.1,0.68318194]
[1768036402633,0.19256255,904.27,902.11,0.68318194]
[1768036402833,0.19256255,904.27,902.12,0.68318194]
[1768036403036,0.19256255,904.27,902.13,0.68318194]
[1768036403235,0.19256255,904.27,902.14,0.68318194]
[1768036403535,0.19256255,904.27,902.15,0.68318194]
[1768036403830,0.19256255,904.27,902.16,0.68318194]
[1768036404036,0.19256255,904.27,902.17,0.68318194]
[1768036404231,0.19256255,904.27,902.18,0.68318194]
[1768036404435,0.19256255,904.27,902.19,0.68318194]
[1768036404732,0.19256255,904.27,902.2,0.68318194]
[1768036404936,0.19256255,904.27,902.21,0.68318194]
[1768036405134,0.19256255,904.27,902.22,0.68318194]
[1768036405434,0.19256255,904.27,902.23,0.68318194]
[1768036405633,0.19256255,904.27,902.24,0.68318194]
[1768036405833,0.19256255,904.27,902.25,0.68318194]
[1768036406136,0.19256255,904.27,902.26,0.68318194]
[1768036406336,0.19256255,904.27,902.27,0.68318194]
[1768036406532,0.19256255,904.27,902.28,0.68318194]
[1768036406736,0.19256255,904.27,902.29,0.68318194]
[1768036406937,0.19256255,904.27,902.3,0.68318194]
[1768036407136,0.19256255,904.27,902.31,0.68318194]
[1768036407332,0.19256255,904.27,902.32,0.68318194]
[1768036407536,0.19256255,904.27,902.33,0.68318194]
[1768036407735,0.19256255,904.27,902.34,0.68318194]
[1768036407939,0.19256255,904.27,902.35,0.68318194]
[1768036408140,0.19256255,904.27,902.36,0.68318194]
[1768036408336,0.19256255,904.27,902.37,0.68318194]
[1768036408640,0.19256255,904.27,902.38,0.68318194]
[1768036408835,0.19256255,904.27,902.39,0.68318194]
[1768036409040,0.19256255,904.27,902.4,0.68318194]
[1768036409236,0.19256255,904.27,902.41,0.68318194]
[1768036409436,0.19256255,904.27,902.42,0.68318194]
[1768036409636,0.19256255,904.27,902.43,0.68318194]
[1768036409936,0.19256255,904.27,902.15,0.83073583]
[1768036409937,0.19256255,904.27,902.44,0.68318194]
[1768036410141,0.19256255,904.27,902.15,0.83073583]
[1768036410341,0.19256255,904.27,902.16,1.51497056]
[1768036410540,0.19256255,904.27,902.17,0.68423473]
[1768036410840,0.19256255,904.27,902.18,0.68423473]
[1768036411140,0.19256255,904.27,902.19,0.68423473]
[1768036411341,0.19256255,904.27,902.2,0.68423473]
[1768036411541,0.19256255,904.27,902.21,0.68423473]
[1768036411742,0.19256255,904.27,902.22,0.68423473]
[1768036411938,0.19256255,904.27,902.23,0.68423473]
[1768036412141,0.19256255,904.27,902.24,0.68423473]
[1768036412338,0.19256255,904.27,902.25,0.68497503]
[1768036412537,0.19256255,904.27,902.26,0.68497503]
[1768036412741,0.19256255,904.27,902.27,0.68497503]
[1768036413042,0.19256255,904.27,902.28,0.68497503]
[1768036413240,0.19256255,904.27,902.29,0.68497503]
[1768036413443,0.19256255,904.27,902.3,0.68497503]
[1768036413739,0.19256255,904.27,902.31,0.68497503]
[1768036413941,0.19256255,904.27,902.32,0.68497503]
[1768036414141,0.19256255,904.27,902.33,0.68497503]
[1768036414340,0.19256255,904.27,902.34,0.68497503]
[1768036414544,0.19256255,904.27,902.35,0.68497503]
[1768036414740,0.19256255,904.27,902.36,0.68497503]
[1768036414941,0.19256255,904.27,902.37,0.68497503]
[1768036415144,0.19256255,904.27,902.38,0.68497503]
[1768036415346,0.19256255,904.27,902.39,0.68497503]
[1768036415545,0.19256255,904.27,902.4,0.68497503]
[1768036415745,0.19256255,904.27,902.41,0.68497503]
[1768036416042,0.19256255,904.27,902.42,0.68497503]
[1768036416247,0.19256255,904.27,902.43,0.68497503]
[1768036416447,0.19256255,904.27,902.44,0.68497503]
[1768036416646,0.19256255,904.27,902.45,0.68497503]
[1768036416847,0.19256255,904.27,902.46,0.68497503]
[1768036417142,0.19256255,904.27,902.47,0.68661015]
[1768036417443,0.19256255,904.27,902.48,0.68708798]
[1768036417642,0.19256255,904.27,902.49,0.68708798]
[1768036417846,0.19256255,904.27,902.2,0.82304267]
[1768036418146,0.19256255,904.27,902.21,0.68708798]
[1768036418346,0.19256255,904.27,902.01,1.959]
[1768036418347,0.19256255,904.27,902.24,0.82304267]
[1768036418646,0.19256255,904.27,902.25,0.68708798]
[1768036418847,0.19256255,904.27,902.26,0.68708798]
[1768036419146,0.19256255,904.27,902.27,0.68708798]
[1768036419348,0.19256255,904.27,902.28,1.51013065]
[1768036419545,0.19256255,904.27,902.29,0.68708798]
[1768036419745,0.19256255,904.27,902.3,0.68708798]
[1768036420045,0.19256255,904.27,902.31,0.68708798]
[1768036420344,0.19256255,904.27,902.32,0.68708798]
[1768036420546,0.19256255,904.27,902.33,0.68708798]
[1768036420743,0.19256255,904.27,902.34,0.68708798]
[1768036421049,0.19256255,904.27,902.35,0.68708798]
[1768036421247,0.19256255,904.27,902.36,0.68708798]
[1768036421445,0.19256255,904.27,902.37,0.68708798]
[1768036421643,0.19256255,904.27,902.38,0.68708798]
[1768036421845,0.19256255,904.27,902.39,0.68708798]
[1768036422049,0.19256255,904.27,902.4,0.68708798]
[1768036422246,0.19256255,904.27,902.41,0.68708798]
[1768036422548,0.19256255,904.27,902.42,0.68708798]
[1768036422747,0.19256255,904.27,902.43,0.68708798]
[1768036422945,0.19256255,904.27,902.44,0.68708798]
[1768036423149,0.19256255,904.27,902.45,0.68708798]
[1768036423349,0.19256255,904.27,902.46,0.68708798]
[1768036423549,0.19256255,904.27,902.19,0.82304267]
[1768036423550,0.19256255,904.27,902.47,0.68708798]
[1768036423747,0.19256255,904.27,902.48,0.68708798]
[1768036423950,0.19256255,904.27,902.19,0.82304267]
[1768036424150,0.19256255,904.27,902.2,0.68891299]
[1768036424349,0.19256255,904.27,902.21,0.68891299]
[1768036424546,0.19256255,904.27,902.22,0.68891299]
[1768036424746,0.19256255,904.27,902.2,0.82304267]
[1768036424747,0.19256255,904.27,902.23,0.68891299]
[1768036425051,0.19256255,904.27,902.24,0.68891299]
[1768036425251,0.19256255,904.27,902.25,0.68891299]
[1768036425448,0.19256255,904.27,902.26,0.68891299]
[1768036425747,0.19256255,904.27,902.27,0.68891299]
[1768036426247,0.19256255,904.27,902.28,0.68891299]
[1768036426456,0.19256255,904.27,902.29,0.68891299]
[1768036426657,0.19256255,904.27,902.3,0.68891299]
[1768036426853,2.94205325,904.27,902.31,0.68891299]
[1768036427056,2.94205325,904.27,902.32,0.68891299]
[1768036427257,2.94205325,904.27,902.33,0.68891299]
[1768036427454,2.94205325,904.27,902.34,0.68891299]
[1768036427455,2.7494907,904.25,902.34,0.68891299]
[1768036427653,2.7494907,904.25,902.35,0.68891299]
[1768036427853,2.7494907,904.25,902.36,0.68891299]
[1768036428052,2.7494907,904.25,902.37,0.68891299]
[1768036428253,2.7494907,904.25,902.38,0.68891299]
[1768036428456,2.7494907,904.23,902.39,0.68891299]
[1768036428658,2.7494907,904.23,902.4,0.68891299]
[1768036428955,2.7494907,904.23,902.41,0.68891299]
[1768036429153,2.7494907,904.23,902.42,0.68891299]
[1768036429453,2.7494907,904.23,902.43,0.68891299]
[1768036429658,2.7494907,904.2,902.44,0.68891299]
[1768036429953,2.7494907,904.2,902.45,0.68891299]
[1768036430151,2.7494907,904.2,902.46,0.68891299]
[1768036430354,2.7494907,904.2,902.47,0.68891299]
[1768036430552,2.7494907,904.17,902.48,0.68891299]
[1768036430752,2.7494907,904.17,902.49,0.68891299]
[1768036430955,2.7494907,904.17,902.21,0.82304267]
[1768036431154,2.7494907,904.17,902.22,1.51330201]
[1768036431354,2.7494907,904.17,902.23,0.69025934]
[1768036431657,2.7494907,904.14,902.24,0.69025934]
[1768036431857,2.7494907,904.14,902.25,0.69025934]
[1768036432053,2.7494907,904.14,902.26,0.69025934]
[1768036432253,2.7494907,904.14,902.27,0.69025934]
[1768036432457,2.7494907,904.14,902.28,0.69025934]
[1768036432658,2.7494907,904.2,902.29,0.69025934]
[1768036432858,2.7494907,904.2,902.3,0.69025934]
[1768036433058,2.7494907,904.2,902.31,0.69025934]
[1768036433258,2.7494907,904.2,902.32,0.69025934]
[1768036433560,2.7494907,904.2,902.33,0.69025934]
[1768036433754,2.7494907,904.2,902.34,0.69025934]
[1768036433958,2.7494907,904.2,902.35,0.69025934]
[1768036434260,2.7494907,904.19,902.36,0.69025934]
[1768036434557,2.7494907,904.19,902.37,0.69025934]
[1768036434758,2.7494907,904.19,902.38,0.69025934]
[1768036434958,2.7494907,904.19,902.39,0.69025934]
[1768036435157,2.7494907,904.19,902.4,0.69025934]
[1768036435459,2.7494907,904.19,902.41,0.69025934]
[1768036435658,2.7494907,904.19,902.42,0.69025934]
[1768036435962,2.7494907,904.19,902.43,0.69025934]
[1768036436160,2.7494907,904.19,902.44,0.69025934]
[1768036436361,2.7494907,904.19,902.45,0.69025934]
[1768036436561,2.7494907,904.19,902.46,0.69025934]
[1768036436759,2.7494907,904.19,902.47,0.69025934]
[1768036436959,2.7494907,904.19,902.48,0.69025934]
[1768036437260,2.7494907,904.18,902.49,0.69025934]
[1768036437464,2.7494907,904.18,902.5,0.69095556]
[1768036437663,2.7494907,904.18,902.51,0.69095556]
[1768036437962,2.7494907,904.18,902.52,0.69095556]
[1768036438160,2.7494907,904.18,902.53,0.69095556]
[1768036438364,2.7494907,904.18,902.54,0.69095556]
[1768036438663,2.7494907,904.18,902.55,0.69095556]
[1768036438861,2.7494907,904.18,902.56,0.69095556]
[1768036439060,2.7494907,904.18,902.57,0.69095556]
[1768036439266,2.7494907,904.18,902.58,0.69095556]
[1768036439561,2.7494907,904.18,902.59,0.69095556]
[1768036439866,2.7494907,904.18,902.33,1.485]
[1768036440061,2.7494907,904.18,902.34,0.69109684]
[1768036440264,2.7494907,904.18,902.35,0.69109684]
[1768036440560,2.7494907,904.17,902.36,0.69109684]
[1768036440765,2.7494907,904.17,902.37,0.69109684]
[1768036440964,2.7494907,904.17,902.38,0.69109684]
[1768036441165,2.7494907,904.17,902.39,0.69109684]
[1768036441366,2.7494907,904.17,902.4,0.69109684]
[1768036441663,2.7494907,904.17,902.41,0.69109684]
[1768036441962,2.7494907,904.17,902.42,0.69109684]
[1768036442263,2.7494907,904.17,902.43,0.69109684]
[1768036442466,2.7494907,904.17,902.44,0.69109684]
[1768036442765,2.7494907,904.17,902.45,0.69109684]
[1768036442964,2.7494907,904.17,902.46,0.69109684]
[1768036443266,2.7494907,904.17,902.47,0.69109684]
[1768036443565,2.7494907,904.17,902.48,0.69109684]
[1768036443866,2.7494907,904.17,902.49,0.69109684]
[1768036444061,2.7494907,904.17,902.5,0.69109684]
[1768036444265,2.7494907,904.16,902.51,0.69109684]
[1768036444462,2.7494907,904.16,902.52,0.69109684]
[1768036444665,2.7494907,904.16,902.53,0.69109684]
[1768036444861,2.7494907,904.16,902.54,0.69109684]
[1768036445162,2.7494907,904.16,902.55,0.69109684]
[1768036445365,2.7494907,904.15,902.56,0.69109684]
[1768036445562,2.7494907,904.15,902.57,0.69109684]
[1768036445761,2.7494907,904.15,902.58,0.69109684]
[1768036445962,2.7494907,904.15,902.59,0.69109684]
[1768036446162,2.7494907,904.15,902.6,0.69109684]
[1768036446365,2.7494907,904.15,902.61,0.69109684]
[1768036446666,2.7494907,904.15,902.62,0.69109684]
[1768036446865,2.7494907,904.15,902.63,0.69109684]
[1768036447066,2.7494907,904.15,902.34,0.83024138]
[1768036447266,2.7494907,904.15,902.35,0.69170661]
[1768036447465,2.7494907,904.15,902.36,0.69170661]
[1768036447666,2.7494907,904.15,902.37,0.69170661]
[1768036447870,2.7494907,904.15,902.38,0.69170661]
[1768036448169,2.7494907,904.15,902.39,0.69170661]
[1768036448365,2.7494907,904.15,902.4,0.69170661]
[1768036448565,2.7494907,904.15,902.41,0.69170661]
[1768036448870,2.7494907,904.15,902.42,0.69170661]
[1768036449068,2.7494907,904.15,902.43,0.69170661]
[1768036449269,2.7494907,904.15,902.44,0.69170661]
[1768036449466,2.7494907,904.15,902.45,0.69170661]
[1768036449670,2.7494907,904.15,902.46,0.69170661]
[1768036449870,2.7494907,904.15,902.47,0.69170661]
[1768036450169,2.7494907,904.15,902.48,2.99170661]
[1768036450367,2.7494907,904.15,902.49,0.69170661]
[1768036450570,2.7494907,904.15,902.5,0.69170661]
[1768036450767,2.7494907,904.15,902.51,0.69170661]
[1768036450971,2.7494907,904.15,902.52,0.69170661]
[1768036451170,2.7494907,904.15,902.53,0.69170661]
[1768036451369,2.7494907,904.15,902.54,0.69170661]
[1768036451572,2.7494907,904.15,902.55,0.69170661]
[1768036451769,2.7494907,904.15,902.56,0.69170661]
[1768036451968,2.7494907,904.15,902.57,0.69170661]
[1768036452171,2.7494907,904.15,902.58,0.69170661]
[1768036452370,2.7494907,904.15,902.59,0.69170661]
[1768036452571,2.7494907,904.12,902.6,0.69170661]
[1768036452770,2.7494907,904.12,902.61,0.69170661]
[1768036452970,2.7494907,904.12,902.62,0.69170661]
[1768036453174,2.7494907,904.12,902.48,2.3]
[1768036453374,2.7494907,904.12,902.49,0.69191677]
[1768036453571,2.7494907,904.12,902.5,0.69191677]
[1768036453774,2.7494907,904.12,902.48,2.3]
[1768036453775,2.7494907,904.12,902.51,0.69191677]
[1768036454071,2.7494907,904.12,902.52,0.69191677]
[1768036454275,2.7494907,904.12,902.53,0.69191677]
[1768036454475,2.7494907,904.12,902.54,0.69191677]
[1768036454670,2.7494907,904.11,902.55,0.69191677]
[1768036454871,2.7494907,904.11,902.56,0.69191677]
[1768036455174,2.7494907,904.11,902.57,0.69191677]
[1768036455372,2.7494907,904.11,902.58,0.69191677]
[1768036455574,2.7494907,904.11,902.59,0.69191677]
[1768036455770,2.7494907,904.11,902.6,0.69191677]
[1768036455972,2.7494907,904.11,902.61,0.69191677]
[1768036456277,2.7494907,904.1,902.62,0.69191677]
[1768036456472,2.7494907,904.1,902.63,0.69191677]
[1768036456772,2.7494907,904.1,902.64,0.69191677]
[1768036456971,2.7494907,904.1,902.48,2.3]
[1768036457171,2.7494907,904.1,902.49,0.69218131]
[1768036457475,2.7494907,904.1,902.5,0.69218131]
[1768036457677,2.7494907,904.1,902.51,0.69218131]
[1768036457875,2.7494907,904.1,902.52,0.69218131]
[1768036458077,2.7494907,904.1,902.53,0.69218131]
[1768036458272,2.7494907,904.09,902.54,0.69218131]
[1768036458474,2.7494907,904.09,902.55,0.69218131]
[1768036458673,2.7494907,904.09,902.56,0.69218131]
[1768036458875,2.7494907,904.09,902.57,0.69218131]
[1768036459073,2.7494907,904.09,902.58,0.69218131]
[1768036459274,2.7494907,904.09,902.59,0.69218131]
[1768036459478,2.7494907,904.09,902.6,0.69218131]
[1768036459675,2.7494907,904.09,902.61,0.69218131]
[1768036459979,0.19256255,904.27,902.62,0.69218131]
[1768036459980,2.7494907,904.12,902.62,0.69218131]
[1768036460174,2.7494907,904.12,902.63,0.69218131]
[1768036460477,2.7494907,904.13,902.64,0.69218131]
[1768036460678,2.7494907,904.13,902.65,0.69218131]
[1768036460878,2.7494907,904.13,902.66,0.69218131]
[1768036461175,2.7494907,904.13,902.67,0.69218131]
[1768036461379,2.7494907,904.15,902.68,0.69218131]
[1768036461575,2.7494907,904.15,902.69,0.69218131]
[1768036461779,2.7494907,904.15,902.48,2.3]
[1768036462081,2.7494907,904.15,902.49,0.69223627]
[1768036462276,2.7494907,904.15,902.5,0.69223627]
[1768036462475,2.7494907,904.15,902.51,0.69223627]
[1768036462779,2.7494907,904.15,902.52,0.69223627]
[1768036462980,2.7494907,904.05,902.53,0.69223627]
[1768036463180,2.7494907,904.05,902.54,0.69223627]
[1768036463380,2.7494907,904.05,902.55,0.69223627]
[1768036463679,2.7494907,904.05,902.56,0.69223627]
[1768036463877,2.7494907,904.05,902.57,0.69223627]
[1768036464180,2.7494907,904.05,902.58,0.69223627]
[1768036464381,2.7494907,904.05,902.48,2.3]
[1768036464574,2.7494907,904.05,902.49,0.69209436]
[1768036464776,2.7494907,904.05,902.5,0.69209436]
[1768036464980,2.7494907,904.05,902.51,0.69209436]
[1768036465181,2.7494907,904.05,902.52,0.69209436]
[1768036465481,2.7494907,904.05,902.53,0.69209436]
[1768036465682,2.7494907,904.05,902.54,0.69209436]
[1768036465884,2.7494907,904.05,902.55,0.69209436]
[1768036466079,2.7494907,904.05,902.56,0.69209436]
[1768036466278,2.7494907,904.05,902.48,2.3]
[1768036466479,2.7494907,904.05,902.49,0.69208886]
[1768036466681,2.7494907,904.01,902.5,0.69208886]
[1768036466879,2.7494907,904.01,902.51,0.69208886]
[1768036467081,2.7494907,904.01,902.52,0.69208886]
[1768036467384,2.7494907,904.01,902.53,0.69208886]
[1768036467581,2.7494907,904.01,902.48,2.3]
[1768036467785,2.7494907,904.01,902.49,0.69208915]
[1768036468085,2.7494907,904.01,902.5,0.69208915]
[1768036468380,2.7494907,904.01,902.51,0.69208915]
[1768036468584,2.7494907,904.01,902.52,0.69208915]
[1768036468786,2.7494907,904.01,902.53,0.69208915]
[1768036468986,2.7494907,904.01,902.48,2.3]
[1768036469182,2.7494907,904.01,902.49,0.69247314]
[1768036469385,2.7494907,904.01,902.5,0.69247314]
[1768036469586,2.7494907,904.01,902.51,0.69247314]
[1768036469785,2.7494907,904.01,902.52,0.69247314]
[1768036469989,2.7494907,904.01,902.53,0.69247314]
[1768036470188,2.7494907,904.01,902.48,2.3]
[1768036470489,2.7494907,904.01,902.49,0.69247413]
[1768036470688,2.7494907,904.01,902.5,0.69247413]
[1768036470885,2.7494907,904.01,902.51,0.69247413]
[1768036471085,2.7494907,904.01,902.52,0.69247413]
[1768036471388,2.7494907,904.01,902.53,0.69247413]
[1768036471589,2.7494907,904.01,902.48,2.3]
[1768036471788,2.7494907,904.01,902.49,0.69247529]
[1768036471989,2.7494907,904.01,902.5,0.69247529]
[1768036472189,2.7494907,904.01,902.51,0.69247529]
[1768036472388,2.7494907,904.01,902.52,0.69247529]
[1768036472589,2.7494907,904.01,902.53,0.69247529]
[1768036472789,2.7494907,904.17,902.54,0.69247529]
[1768036472989,2.7494907,904.17,902.55,0.69247529]
[1768036473191,2.7494907,904.17,902.56,0.69247529]
[1768036473387,2.7494907,904.17,902.57,0.69247529]
[1768036473687,2.7494907,904.17,902.58,0.69247529]
[1768036473885,2.7494907,904.17,902.59,0.69247529]
[1768036474085,2.7494907,904.17,902.6,0.69247529]
[1768036474290,2.7494907,904.17,902.61,0.69247529]
[1768036474488,2.7494907,904.17,902.62,0.69247529]
[1768036474686,2.7494907,904.17,902.63,0.69247529]
[1768036474894,2.7494907,904.17,902.64,0.69247529]
[1768036475093,2.7494907,904.17,902.65,0.69247529]
[1768036475289,2.7494907,904.17,902.66,0.69247529]
[1768036475488,2.7494907,904.17,902.67,0.69247529]
[1768036475790,2.7494907,904.17,902.68,0.69247529]
[1768036475991,2.7494907,904.17,902.69,0.69247529]
[1768036476189,2.7494907,904.17,902.48,2.3]
[1768036476393,2.7494907,904.17,902.49,0.69247953]
[1768036476694,2.7494907,904.17,902.5,0.69247953]
[1768036476893,2.7494907,904.17,902.51,0.69247953]
[1768036477190,2.7494907,904.17,902.52,0.69247953]
[1768036477392,2.7494907,904.17,902.53,0.69247953]
[1768036477592,2.7494907,904.17,902.54,0.69247953]
[1768036477790,2.7494907,904.17,902.55,0.69247953]
[1768036477990,2.7494907,904.17,902.56,0.69247953]
[1768036478190,2.7494907,904.17,902.57,0.69247953]
[1768036478388,2.7494907,904.17,902.58,0.69247953]
[1768036478593,2.7494907,904.17,902.59,0.69247953]
[1768036478792,2.7494907,904.17,902.6,0.69247953]
[1768036478991,2.7494907,904.17,902.61,0.69247953]
[1768036479191,2.7494907,904.17,902.62,0.69247953]
[1768036479391,2.7494907,904.17,902.63,0.69247953]
[1768036479591,2.7494907,904.17,902.64,0.69247953]
[1768036479802,2.7494907,904.17,902.65,0.69247953]
[1768036479993,2.7494907,904.17,902.66,0.69247953]
[1768036480201,2.7494907,904.17,902.67,0.69247953]
[1768036480392,2.7494907,904.17,902.68,0.69247953]
[1768036480592,2.7494907,904.17,902.69,0.69247953]
[1768036480795,2.7494907,904.17,902.48,2.3]
[1768036480996,2.7494907,904.17,902.49,0.69248326]
[1768036481194,2.7494907,904.17,902.5,0.69248326]
[1768036481396,2.7494907,904.17,902.51,0.69248326]
[1768036481594,2.7494907,904.17,902.52,0.69248326]
[1768036481798,2.7494907,904.17,902.53,0.69248326]
[1768036481996,2.7494907,904.17,902.54,0.69248326]
[1768036482298,2.7494907,904.17,902.55,0.69248326]
[1768036482597,2.7494907,904.17,902.56,0.69248326]
[1768036482798,2.7494907,904.13,902.57,0.69248326]
[1768036482995,2.7494907,904.13,902.58,0.69248326]
[1768036483198,2.7494907,904.13,902.59,0.69248326]
[1768036483500,2.7494907,904.13,902.6,0.69248326]
[1768036483700,2.7494907,904.13,902.61,0.69248326]
[1768036483894,2.7494907,904.13,902.62,0.69248326]
[1768036484101,2.7494907,904.13,902.63,0.69248326]
[1768036484300,2.7494907,904.13,902.64,0.69248326]
[1768036484504,2.7494907,904.13,902.65,0.69248326]
[1768036484698,2.7494907,904.13,902.48,2.3]
[1768036484898,2.7494907,904.13,902.49,0.69248742]
[1768036485200,2.7494907,904.13,902.5,0.69248742]
[1768036485399,2.7494907,904.12,902.51,0.69248742]
[1768036485597,2.7494907,904.12,902.52,0.69248742]
[1768036485799,2.7494907,904.12,902.53,0.69248742]
[1768036486002,2.7494907,904.12,902.54,0.69248742]
[1768036486203,2.7494907,904.12,902.55,0.69248742]
[1768036486503,2.7494907,904.12,902.56,0.69248742]
[1768036486702,2.7494907,904.12,902.57,0.69248742]
[1768036486905,2.7494907,904.12,902.58,0.69248742]
[1768036487097,2.7494907,904.12,902.59,0.69248742]
[1768036487298,2.7494907,904.12,902.6,0.69248742]
[1768036487501,2.7494907,904.08,902.48,2.3]
[1768036487800,2.7494907,904.08,902.49,0.69253074]
[1768036488104,2.7494907,904.06,902.5,0.69253074]
[1768036488303,2.7494907,904.06,902.51,0.69253074]
[1768036488504,2.7494907,904.07,902.52,0.69253074]
[1768036488803,2.7494907,904.07,902.53,0.69253074]
[1768036489000,2.7494907,904.07,902.54,0.69253074]
[1768036489199,2.7494907,904.07,902.55,0.69253074]
[1768036489500,2.7494907,904.07,902.56,0.69253074]
[1768036489701,2.7494907,904.07,902.57,0.69253074]
[1768036489903,2.7494907,904.07,902.58,0.69253074]
[1768036490104,2.7494907,904.07,902.48,2.3]
[1768036490302,2.7494907,904.07,902.49,0.69236599]
[1768036490501,2.7494907,904.07,902.5,0.69236599]
[1768036490700,2.7494907,904.07,902.51,0.69236599]
[1768036490901,2.7494907,904.07,902.52,0.69236599]
[1768036491106,2.7494907,904.07,902.53,0.69236599]
[1768036491307,2.7494907,904.07,902.54,0.69236599]
[1768036491501,2.7494907,904.07,902.55,0.69236599]
[1768036491802,2.7494907,904.07,902.56,0.69236599]
[1768036492101,2.7494907,904.07,902.57,0.69236599]
[1768036492305,2.7494907,904.07,902.48,2.3]
[1768036492505,2.7494907,904.07,902.49,0.69228725]
[1768036492703,2.7494907,904.07,902.5,0.69228725]
[1768036492900,2.7494907,904.07,902.51,0.69228725]
[1768036493099,2.7494907,904.07,902.52,0.69228725]
[1768036493305,2.7494907,904.07,902.53,0.69228725]
[1768036493505,2.7494907,904.07,902.54,0.69228725]
[1768036493705,2.7494907,904.08,902.55,0.69228725]
[1768036493905,2.7494907,904.08,902.56,0.69228725]
[1768036494100,2.7494907,904.08,902.57,0.69228725]
[1768036494306,2.7494907,904.08,902.48,2.3]
[1768036494502,2.7494907,904.08,902.49,0.69222262]
[1768036494701,2.7494907,904.08,902.5,0.69222262]
[1768036495004,2.7494907,904.08,902.51,0.69222262]
[1768036495202,2.7494907,904.08,902.52,0.69222262]
[1768036495402,2.7494907,904.08,902.53,0.69222262]
[1768036495605,2.7494907,904.08,902.54,0.69222262]
[1768036495803,2.7494907,904.08,902.55,0.69222262]
[1768036496106,2.7494907,904.08,902.56,0.69222262]
[1768036496306,2.7494907,904.08,902.57,0.69222262]
[1768036496508,2.7494907,904.08,902.48,2.3]
[1768036496707,2.7494907,904.08,902.49,0.69216843]
[1768036496904,2.7494907,904.08,902.5,0.69216843]
[1768036497201,2.7494907,904.08,902.51,0.69216843]
[1768036497506,2.7494907,904.08,902.52,0.69216843]
[1768036497706,2.7494907,904.08,902.53,0.69216843]
[1768036497904,2.7494907,904.07,902.54,0.69216843]
[1768036498104,2.7494907,904.07,902.55,0.69216843]
[1768036498302,2.7494907,904.07,902.48,2.3]
[1768036498508,2.7494907,904.07,902.49,0.69259663]
[1768036498704,2.7494907,904.07,902.5,0.69259663]
[1768036498904,2.7494907,904.07,902.51,0.69259663]
[1768036499108,2.7494907,904.07,902.52,0.69259663]
[1768036499305,2.7494907,904.07,902.53,0.69259663]
[1768036499508,2.7494907,904.07,902.54,0.69259663]
[1768036499710,2.7494907,904.07,902.55,0.69259663]
[1768036500010,2.7494907,904.07,902.48,2.3]
[1768036500306,2.7494907,904.01,902.49,0.69256529]
[1768036500609,2.7494907,904.01,902.48,2.3]
[1768036501010,2.7494907,903.99,902.48,2.3]
[1768036501509,2.7494907,904.0,902.48,2.3]
[1768036502708,2.7494907,903.99,902.48,2.3]
[1768036503110,2.7494907,903.98,902.48,2.3]
[1768036503710,2.7494907,903.99,902.48,2.3]
[1768036505616,2.7494907,904.0,902.48,2.3]
[1768036508314,2.7494907,904.01,902.48,2.3]